[Event "*** MasterClass Titled Tuesday Blitz"]
[Site "Chess.com"]
[Date "2017.12.12"]
[Round "4"]
[White "JoachimBN"]
[Black "Annawel"]
[Result "1/2-1/2"]
[WhiteElo "2582"]
[BlackElo "2745"]
[TimeControl "180+2"]
[EndTime "13:55:18 PST"]
[Termination "Game drawn by repetition"]

1. d4 {[%clk 0:03:01.9]} 1... Nf6 {[%clk 0:03:00.9]} 2. c4 {[%clk 0:02:59.4]}
2... d6 {[%clk 0:03:02]} 3. Nc3 {[%clk 0:02:59.7]} 3... e5 {[%clk 0:02:58.6]} 4.
Nf3 {[%clk 0:02:30.6]} 4... Nbd7 {[%clk 0:02:54.9]} 5. g3 {[%clk 0:02:31.5]}
5... Be7 {[%clk 0:02:54.6]} 6. Bg2 {[%clk 0:02:30.6]} 6... O-O {[%clk
0:02:55.7]} 7. O-O {[%clk 0:02:31.9]} 7... c6 {[%clk 0:02:57.3]} 8. e4 {[%clk
0:02:30.9]} 8... a6 {[%clk 0:02:53.9]} 9. Re1 {[%clk 0:02:17.2]} 9... b5 {[%clk
0:02:46.9]} 10. c5 {[%clk 0:02:18]} 10... Qc7 {[%clk 0:02:00.9]} 11. cxd6 {[%clk
0:02:14.4]} 11... Bxd6 {[%clk 0:02:02.8]} 12. dxe5 {[%clk 0:02:05.1]} 12... Nxe5
{[%clk 0:02:04.7]} 13. Nxe5 {[%clk 0:02:06]} 13... Bxe5 {[%clk 0:02:06.6]} 14.
f4 {[%clk 0:02:06.7]} 14... Rd8 {[%clk 0:02:06]} 15. Qe2 {[%clk 0:01:48.9]}
15... Bd4+ {[%clk 0:01:47.8]} 16. Be3 {[%clk 0:01:49.6]} 16... Be6 {[%clk
0:01:26.9]} 17. Bxd4 {[%clk 0:01:49.2]} 17... Rxd4 {[%clk 0:01:28.8]} 18. e5
{[%clk 0:01:41.6]} 18... Nd5 {[%clk 0:01:28]} 19. Qf2 {[%clk 0:01:41.8]} 19...
Qa7 {[%clk 0:01:19.3]} 20. Bxd5 {[%clk 0:01:10.8]} 20... Bxd5 {[%clk 0:01:17.7]}
21. Rad1 {[%clk 0:01:08.4]} 21... Rxd1 {[%clk 0:01:16.4]} 22. Rxd1 {[%clk
0:01:10.3]} 22... Qd7 {[%clk 0:01:00.3]} 23. Qb6 {[%clk 0:00:49.4]} 23... Qg4
{[%clk 0:00:31.8]} 24. Rd3 {[%clk 0:00:50.1]} 24... h5 {[%clk 0:00:29.4]} 25.
Nxd5 {[%clk 0:00:40.5]} 25... cxd5 {[%clk 0:00:31.3]} 26. Rxd5 {[%clk
0:00:42.3]} 26... Kh7 {[%clk 0:00:32.1]} 27. Rd8 {[%clk 0:00:36.1]} 27... Rxd8
{[%clk 0:00:25.7]} 28. Qxd8 {[%clk 0:00:38]} 28... Qe2 {[%clk 0:00:26.5]} 29.
Qd4 {[%clk 0:00:33.5]} 29... g6 {[%clk 0:00:24.8]} 30. a3 {[%clk 0:00:33]} 30...
a5 {[%clk 0:00:25.3]} 31. Qf2 {[%clk 0:00:31.8]} 31... Qd1+ {[%clk 0:00:26.3]}
32. Kg2 {[%clk 0:00:32.7]} 32... a4 {[%clk 0:00:26.6]} 33. h3 {[%clk 0:00:29.9]}
33... Kg8 {[%clk 0:00:25.5]} 34. Kh2 {[%clk 0:00:29.3]} 34... Qb1 {[%clk
0:00:24.5]} 35. Qe2 {[%clk 0:00:28.3]} 35... h4 {[%clk 0:00:16.9]} 36. gxh4
{[%clk 0:00:22.8]} 36... Qc1 {[%clk 0:00:17.8]} 37. Qf2 {[%clk 0:00:21]} 37...
Qd1 {[%clk 0:00:16.8]} 38. Kg3 {[%clk 0:00:21.1]} 38... Qd3+ {[%clk 0:00:17.4]}
39. Kh2 {[%clk 0:00:22.4]} 39... Qe4 {[%clk 0:00:16.9]} 40. Qd2 {[%clk
0:00:21.3]} 40... Qf3 {[%clk 0:00:15.7]} 41. Qd8+ {[%clk 0:00:13]} 41... Kh7
{[%clk 0:00:16.5]} 42. Qf6 {[%clk 0:00:13.9]} 42... Qf2+ {[%clk 0:00:16.6]} 43.
Kh1 {[%clk 0:00:15.1]} 43... Qf1+ {[%clk 0:00:18]} 44. Kh2 {[%clk 0:00:16.3]}
44... Qf2+ {[%clk 0:00:18.7]} 45. Kh1 {[%clk 0:00:17.6]} 45... Qf3+ {[%clk
0:00:20.3]} 46. Kh2 {[%clk 0:00:18.8]} 46... Qf2+ {[%clk 0:00:12.4]} 47. Kh1
{[%clk 0:00:19.7]} 47... Qf3+ {[%clk 0:00:14.1]} 48. Kh2 {[%clk 0:00:20.6]}
48... Qd5 {[%clk 0:00:15.6]} 49. h5 {[%clk 0:00:18.8]} 49... Qd2+ {[%clk
0:00:16.2]} 50. Kg1 {[%clk 0:00:16.4]} 50... Qc1+ {[%clk 0:00:16.1]} 51. Kg2
{[%clk 0:00:16.7]} 51... Qxb2+ {[%clk 0:00:13.6]} 52. Kg1 {[%clk 0:00:18]} 52...
Qc1+ {[%clk 0:00:09.2]} 53. Kf2 {[%clk 0:00:18.7]} 53... Qd2+ {[%clk 0:00:10.2]}
54. Kg3 {[%clk 0:00:16.7]} 54... Qe3+ {[%clk 0:00:09.5]} 55. Kg2 {[%clk
0:00:17]} 55... Qe2+ {[%clk 0:00:10.3]} 56. Kg3 {[%clk 0:00:18]} 56... Qe1+
{[%clk 0:00:08.7]} 57. Kg2 {[%clk 0:00:19]} 57... Qd2+ {[%clk 0:00:04.6]} 58.
Kg3 {[%clk 0:00:19.6]} 58... Qe1+ {[%clk 0:00:05.9]} 59. Kg2 {[%clk 0:00:20.9]}
59... Qe4+ {[%clk 0:00:07.3]} 60. Kg3 {[%clk 0:00:20.7]} 60... Qe3+ {[%clk
0:00:08.1]} 61. Kg2 {[%clk 0:00:21.9]} 61... Qd2+ {[%clk 0:00:09.2]} 62. Kg3
{[%clk 0:00:23.2]} 62... Qe1+ {[%clk 0:00:10.3]} 63. Kg2 {[%clk 0:00:24.5]}
63... Qe2+ {[%clk 0:00:11.1]} 64. Kg3 {[%clk 0:00:25.6]} 64... Kg8 {[%clk
0:00:06.2]} 65. hxg6 {[%clk 0:00:23.8]} 65... Qd3+ {[%clk 0:00:07.1]} 66. Kf2
{[%clk 0:00:23.2]} 66... fxg6 {[%clk 0:00:05.5]} 67. Qe6+ {[%clk 0:00:20.2]}
67... Kh7 {[%clk 0:00:04.8]} 68. Qe7+ {[%clk 0:00:18.7]} 68... Kg8 {[%clk
0:00:05.6]} 69. Qe8+ {[%clk 0:00:19.6]} 69... Kg7 {[%clk 0:00:06.9]} 70. Qe7+
{[%clk 0:00:21.5]} 70... Kh6 {[%clk 0:00:08.4]} 71. Qg5+ {[%clk 0:00:22.3]}
71... Kg7 {[%clk 0:00:09.7]} 72. Qf6+ {[%clk 0:00:22.9]} 72... Kh7 {[%clk
0:00:10.9]} 73. Qe7+ {[%clk 0:00:22.8]} 73... Kh6 {[%clk 0:00:10.9]} 74. e6
{[%clk 0:00:23.8]} 74... Qd4+ {[%clk 0:00:10.2]} 75. Kf3 {[%clk 0:00:19.6]}
75... Qd3+ {[%clk 0:00:11]} 76. Kf2 {[%clk 0:00:20.9]} 76... Qd4+ {[%clk
0:00:07.4]} 77. Kf3 {[%clk 0:00:22.2]} 77... Qd5+ {[%clk 0:00:08.7]} 78. Kf2
{[%clk 0:00:22.7]} 78... Qd2+ {[%clk 0:00:08.8]} 79. Kf3 {[%clk 0:00:23.7]}
79... Qd3+ {[%clk 0:00:10.3]} 80. Kf2 {[%clk 0:00:25]} 80... Qd2+ {[%clk
0:00:11.4]} 81. Kf3 {[%clk 0:00:26.3]} 81... Qd3+ {[%clk 0:00:12.9]} 82. Kf2
{[%clk 0:00:27.8]} 82... Qd2+ {[%clk 0:00:14.5]} 1/2-1/2

[Event "*** MasterClass Titled Tuesday Blitz"]
[Site "Chess.com"]
[Date "2017.12.12"]
[Round "4"]
[White "Rsnr"]
[Black "TomsKantans"]
[Result "0-1"]
[WhiteElo "2614"]
[BlackElo "2454"]
[TimeControl "180+2"]
[EndTime "13:55:25 PST"]
[Termination "TomsKantans won by resignation"]

1. d4 {[%clk 0:03:01.2]} 1... Nf6 {[%clk 0:02:59.5]} 2. c4 {[%clk 0:03:02.1]}
2... g6 {[%clk 0:02:56.7]} 3. g3 {[%clk 0:03:03]} 3... Bg7 {[%clk 0:02:56.3]} 4.
Bg2 {[%clk 0:03:04.1]} 4... d5 {[%clk 0:02:57.8]} 5. cxd5 {[%clk 0:03:04.9]}
5... Nxd5 {[%clk 0:02:59.7]} 6. Nf3 {[%clk 0:03:06.8]} 6... O-O {[%clk
0:03:00.2]} 7. O-O {[%clk 0:03:08.5]} 7... Nb6 {[%clk 0:03:00.5]} 8. Nc3 {[%clk
0:03:10]} 8... Nc6 {[%clk 0:03:01.4]} 9. e3 {[%clk 0:03:11.6]} 9... e5 {[%clk
0:03:01.4]} 10. d5 {[%clk 0:03:13]} 10... Ne7 {[%clk 0:03:02.6]} 11. e4 {[%clk
0:03:14.2]} 11... Bg4 {[%clk 0:03:03.7]} 12. h3 {[%clk 0:03:15.4]} 12... Bxf3
{[%clk 0:03:05]} 13. Qxf3 {[%clk 0:03:17.3]} 13... c6 {[%clk 0:03:06.2]} 14. Rd1
{[%clk 0:03:19]} 14... cxd5 {[%clk 0:03:07.1]} 15. Nxd5 {[%clk 0:03:20.9]} 15...
Nbxd5 {[%clk 0:03:06.4]} 16. exd5 {[%clk 0:03:22.8]} 16... Nf5 {[%clk
0:03:07.9]} 17. Qb3 {[%clk 0:03:23.5]} 17... Nd4 {[%clk 0:03:03]} 18. Qd3 {[%clk
0:02:48.2]} 18... Rc8 {[%clk 0:02:55.2]} 19. Be3 {[%clk 0:02:48.9]} 19... Qd6
{[%clk 0:02:52.4]} 20. Rac1 {[%clk 0:02:44.9]} 20... a6 {[%clk 0:02:52.2]} 21.
h4 {[%clk 0:02:18.1]} 21... f5 {[%clk 0:02:43.2]} 22. Bxd4 {[%clk 0:02:18.8]}
22... exd4 {[%clk 0:02:44]} 23. Rxc8 {[%clk 0:02:19.9]} 23... Rxc8 {[%clk
0:02:44.4]} 24. Re1 {[%clk 0:02:21.8]} 24... Qb4 {[%clk 0:02:26.5]} 25. Qe2
{[%clk 0:01:22]} 25... Rd8 {[%clk 0:02:23.6]} 26. Rd1 {[%clk 0:01:13.8]} 26...
Bf6 {[%clk 0:02:19]} 27. a3 {[%clk 0:01:05.3]} 27... Qd6 {[%clk 0:02:07.4]} 28.
Re1 {[%clk 0:01:00.4]} 28... Kg7 {[%clk 0:02:07.4]} 29. h5 {[%clk 0:01:01.4]}
29... Rc8 {[%clk 0:01:26.5]} 30. Qd2 {[%clk 0:01:00.8]} 30... gxh5 {[%clk
0:01:16.7]} 31. Re6 {[%clk 0:01:00.7]} 31... Qc5 {[%clk 0:01:07.4]} 32. Kh2
{[%clk 0:00:43.1]} 32... Qc1 {[%clk 0:01:00.7]} 33. Qb4 {[%clk 0:00:39.5]} 33...
b5 {[%clk 0:00:53.9]} 34. Qd6 {[%clk 0:00:36.2]} 34... Rf8 {[%clk 0:00:55]} 35.
Bf3 {[%clk 0:00:19.4]} 35... h4 {[%clk 0:00:27.7]} 36. Bh5 {[%clk 0:00:20]}
36... hxg3+ {[%clk 0:00:28.9]} 37. Qxg3+ {[%clk 0:00:18.4]} 37... Qg5 {[%clk
0:00:25.7]} 38. Qxg5+ {[%clk 0:00:11]} 38... Bxg5 {[%clk 0:00:27.6]} 39. Rxa6
{[%clk 0:00:12.7]} 39... d3 {[%clk 0:00:26]} 40. d6 {[%clk 0:00:12.3]} 40... Rd8
{[%clk 0:00:23.5]} 41. Rb6 {[%clk 0:00:06.6]} 41... d2 {[%clk 0:00:23]} 42. Kg2
{[%clk 0:00:07]} 42... Bf4 {[%clk 0:00:18.3]} 43. Rxb5 {[%clk 0:00:07.6]} 43...
Rxd6 {[%clk 0:00:18.8]} 44. Rxf5 {[%clk 0:00:08.8]} 44... Rd4 {[%clk 0:00:13.3]}
45. Bd1 {[%clk 0:00:09.5]} 45... Kg6 {[%clk 0:00:11.5]} 46. Rc5 {[%clk
0:00:10.5]} 46... h6 {[%clk 0:00:11.4]} 47. b4 {[%clk 0:00:11.7]} 47... Kf6
{[%clk 0:00:10.9]} 48. Kf3 {[%clk 0:00:12.7]} 48... Bg5 {[%clk 0:00:11.5]} 49.
Ke2 {[%clk 0:00:11.8]} 49... Re4+ {[%clk 0:00:12.3]} 50. Kd3 {[%clk 0:00:13.2]}
50... Re1 {[%clk 0:00:11.2]} 51. Kc2 {[%clk 0:00:13.4]} 51... h5 {[%clk
0:00:12.6]} 52. Bxh5 {[%clk 0:00:06.1]} 52... Rc1+ {[%clk 0:00:12.5]} 53. Kb3
{[%clk 0:00:07.3]} 53... d1=Q+ {[%clk 0:00:12.3]} 54. Bxd1 {[%clk 0:00:09]}
54... Rxd1 {[%clk 0:00:14.2]} 55. a4 {[%clk 0:00:10.1]} 55... Rb1+ {[%clk
0:00:13]} 56. Kc4 {[%clk 0:00:09.9]} 56... Bd2 {[%clk 0:00:12.1]} 57. Rc6+
{[%clk 0:00:08.8]} 57... Ke5 {[%clk 0:00:11.6]} 58. b5 {[%clk 0:00:10.3]} 58...
Rb4+ {[%clk 0:00:12.2]} 59. Kd3 {[%clk 0:00:11.7]} 59... Bf4 {[%clk 0:00:07.9]}
60. Rc4 {[%clk 0:00:11.1]} 60... Rb2 {[%clk 0:00:07.5]} 61. f3 {[%clk
0:00:09.5]} 61... Bg3 {[%clk 0:00:07]} 62. Rg4 {[%clk 0:00:09]} 62... Bf2 {[%clk
0:00:08]} 63. Kc3 {[%clk 0:00:10]} 63... Rb1 {[%clk 0:00:06.8]} 64. Kc2 {[%clk
0:00:11.3]} 64... Ra1 {[%clk 0:00:07.1]} 65. Kb2 {[%clk 0:00:12]} 65... Rf1
{[%clk 0:00:05.9]} 66. a5 {[%clk 0:00:13.3]} 66... Bd4+ {[%clk 0:00:07.2]} 67.
Rxd4 {[%clk 0:00:04.9]} 67... Kxd4 {[%clk 0:00:09.1]} 68. b6 {[%clk 0:00:06.7]}
68... Rf2+ {[%clk 0:00:07]} 69. Kb1 {[%clk 0:00:07]} 69... Rxf3 {[%clk
0:00:04.3]} 70. Kc2 {[%clk 0:00:04.2]} 70... Rf2+ {[%clk 0:00:03.5]} 71. Kb3
{[%clk 0:00:05.2]} 71... Rf5 {[%clk 0:00:02.8]} 72. Kb4 {[%clk 0:00:05.8]} 72...
Rf1 {[%clk 0:00:02.8]} 73. Kb5 {[%clk 0:00:05.5]} 73... Kd5 {[%clk 0:00:02.7]}
74. b7 {[%clk 0:00:06.2]} 74... Rb1+ {[%clk 0:00:03.5]} 75. Ka6 {[%clk
0:00:07.7]} 75... Kc6 {[%clk 0:00:04.9]} 76. Ka7 {[%clk 0:00:09.6]} 76... Rxb7+
{[%clk 0:00:05.8]} 77. Ka8 {[%clk 0:00:11.5]} 77... Rh7 {[%clk 0:00:04]} 78. a6
{[%clk 0:00:12.9]} 78... Kb6 {[%clk 0:00:05.2]} 0-1

[Event "*** MasterClass Titled Tuesday Blitz"]
[Site "Chess.com"]
[Date "2017.12.12"]
[Round "4"]
[White "gemarin"]
[Black "1random"]
[Result "1/2-1/2"]
[WhiteElo "1846"]
[BlackElo "2138"]
[TimeControl "180+2"]
[EndTime "13:55:34 PST"]
[Termination "Game drawn by repetition"]

1. d4 {[%clk 0:02:28]} 1... Nf6 {[%clk 0:02:55.9]} 2. c4 {[%clk 0:02:28.4]} 2...
e6 {[%clk 0:02:55.3]} 3. Nf3 {[%clk 0:02:29.2]} 3... c5 {[%clk 0:02:56.2]} 4.
Nc3 {[%clk 0:02:25.2]} 4... cxd4 {[%clk 0:02:57]} 5. Nxd4 {[%clk 0:02:25.4]}
5... d5 {[%clk 0:02:58.6]} 6. cxd5 {[%clk 0:02:21.6]} 6... Nxd5 {[%clk
0:03:00.5]} 7. Bd2 {[%clk 0:02:07.4]} 7... Be7 {[%clk 0:02:47.3]} 8. e4 {[%clk
0:02:07.9]} 8... Nb4 {[%clk 0:02:46.1]} 9. Bb5+ {[%clk 0:02:04.6]} 9... N4c6
{[%clk 0:02:17]} 10. Nf3 {[%clk 0:01:56.6]} 10... O-O {[%clk 0:02:08.6]} 11. O-O
{[%clk 0:01:56.5]} 11... a6 {[%clk 0:02:09.1]} 12. Be2 {[%clk 0:01:54.9]} 12...
e5 {[%clk 0:01:38.8]} 13. h3 {[%clk 0:01:50.9]} 13... Be6 {[%clk 0:01:37.5]} 14.
Be3 {[%clk 0:01:49]} 14... Nd7 {[%clk 0:01:38.6]} 15. Nd5 {[%clk 0:01:45.9]}
15... Bc5 {[%clk 0:01:37.4]} 16. Rc1 {[%clk 0:01:39.9]} 16... Bxe3 {[%clk
0:01:32]} 17. Nxe3 {[%clk 0:01:37]} 17... Nb6 {[%clk 0:01:01.5]} 18. b3 {[%clk
0:01:30.2]} 18... Qxd1 {[%clk 0:00:48.3]} 19. Rfxd1 {[%clk 0:01:30.4]} 19...
Rfd8 {[%clk 0:00:49.9]} 20. Rxd8+ {[%clk 0:01:29.7]} 20... Rxd8 {[%clk
0:00:51.8]} 21. Bxa6 {[%clk 0:01:26.6]} 21... Nd4 {[%clk 0:00:42.9]} 22. Bf1
{[%clk 0:01:18.6]} 22... Nxf3+ {[%clk 0:00:34.8]} 23. gxf3 {[%clk 0:01:19.4]}
23... Ra8 {[%clk 0:00:24.9]} 24. Rc7 {[%clk 0:01:09]} 24... Ra7 {[%clk
0:00:22.7]} 25. Nc4 {[%clk 0:01:05.9]} 25... Nd7 {[%clk 0:00:15.3]} 26. Rc8+
{[%clk 0:00:59.6]} 26... Nf8 {[%clk 0:00:16.5]} 27. Rb8 {[%clk 0:01:00.5]} 27...
f6 {[%clk 0:00:14.8]} 28. a4 {[%clk 0:00:59.1]} 28... g6 {[%clk 0:00:13.4]} 29.
Bd3 {[%clk 0:00:54.8]} 29... Kg7 {[%clk 0:00:14.2]} 30. Bc2 {[%clk 0:00:53.2]}
30... Nd7 {[%clk 0:00:15.1]} 31. Rd8 {[%clk 0:00:52.5]} 31... Nc5 {[%clk
0:00:14.2]} 32. Rb8 {[%clk 0:00:45.7]} 32... Bxc4 {[%clk 0:00:13.6]} 33. bxc4
{[%clk 0:00:46]} 33... Nxa4 {[%clk 0:00:12.7]} 34. Bxa4 {[%clk 0:00:45.8]} 34...
Rxa4 {[%clk 0:00:14.6]} 35. Rxb7+ {[%clk 0:00:46.9]} 35... Kh6 {[%clk
0:00:16.3]} 36. Rc7 {[%clk 0:00:48]} 36... Kg5 {[%clk 0:00:17]} 37. Kg2 {[%clk
0:00:49.5]} 37... Kf4 {[%clk 0:00:15.9]} 38. Rc6 {[%clk 0:00:51.1]} 38... Kg5
{[%clk 0:00:16.1]} 39. c5 {[%clk 0:00:50.3]} 39... Rc4 {[%clk 0:00:16.5]} 40.
Rc7 {[%clk 0:00:50.5]} 40... h5 {[%clk 0:00:17.6]} 41. Kg3 {[%clk 0:00:49.9]}
41... h4+ {[%clk 0:00:16.1]} 42. Kg2 {[%clk 0:00:50.6]} 42... Kf4 {[%clk
0:00:17.6]} 43. Rc6 {[%clk 0:00:49.7]} 43... Kg5 {[%clk 0:00:15.2]} 44. Rc8
{[%clk 0:00:50.1]} 44... Kf4 {[%clk 0:00:16]} 45. c6 {[%clk 0:00:48]} 45... f5
{[%clk 0:00:13.7]} 46. exf5 {[%clk 0:00:48.3]} 46... gxf5 {[%clk 0:00:15.6]} 47.
c7 {[%clk 0:00:47.6]} 47... Rc3 {[%clk 0:00:16]} 48. Rh8 {[%clk 0:00:44.1]}
48... Rxc7 {[%clk 0:00:16.6]} 49. Rxh4+ {[%clk 0:00:45.6]} 49... Kg5 {[%clk
0:00:18.2]} 50. Rb4 {[%clk 0:00:45.6]} 50... Rc2 {[%clk 0:00:18.9]} 51. Kg3
{[%clk 0:00:45.6]} 51... Rc5 {[%clk 0:00:18.5]} 52. f4+ {[%clk 0:00:44.3]} 52...
exf4+ {[%clk 0:00:19.4]} 53. Rxf4 {[%clk 0:00:45.2]} 53... Rc3+ {[%clk
0:00:20.8]} 54. f3 {[%clk 0:00:46.4]} 54... Rc1 {[%clk 0:00:21.4]} 55. h4+
{[%clk 0:00:47.1]} 55... Kg6 {[%clk 0:00:22.7]} 56. Rb4 {[%clk 0:00:46.8]} 56...
Rc6 {[%clk 0:00:22.7]} 57. Kf4 {[%clk 0:00:47.7]} 57... Ra6 {[%clk 0:00:23.7]}
58. h5+ {[%clk 0:00:47]} 58... Kf6 {[%clk 0:00:16.3]} 59. h6 {[%clk 0:00:46.4]}
59... Kg6 {[%clk 0:00:16.2]} 60. h7 {[%clk 0:00:46.9]} 60... Kxh7 {[%clk
0:00:17.1]} 61. Kxf5 {[%clk 0:00:48]} 61... Kg7 {[%clk 0:00:18.3]} 62. Rb7+
{[%clk 0:00:46.9]} 62... Kf8 {[%clk 0:00:19.2]} 63. f4 {[%clk 0:00:47.9]} 63...
Rc6 {[%clk 0:00:20.2]} 64. Kg5 {[%clk 0:00:47.6]} 64... Ra6 {[%clk 0:00:21.2]}
65. f5 {[%clk 0:00:48.3]} 65... Rc6 {[%clk 0:00:22.1]} 66. Rh7 {[%clk
0:00:48.4]} 66... Ra6 {[%clk 0:00:22.9]} 67. Rb7 {[%clk 0:00:48.2]} 67... Rc6
{[%clk 0:00:23.8]} 68. Rd7 {[%clk 0:00:45.9]} 68... Rb6 {[%clk 0:00:24.6]} 69.
Rd5 {[%clk 0:00:37.5]} 69... Kf7 {[%clk 0:00:25]} 70. Ra5 {[%clk 0:00:36.1]}
70... Rc6 {[%clk 0:00:25.9]} 71. Ra7+ {[%clk 0:00:35.5]} 71... Kf8 {[%clk
0:00:26.9]} 72. Ra8+ {[%clk 0:00:35.7]} 72... Kf7 {[%clk 0:00:27.9]} 73. Ra7+
{[%clk 0:00:36.8]} 73... Kf8 {[%clk 0:00:29.1]} 74. Rh7 {[%clk 0:00:36.3]} 74...
Rb6 {[%clk 0:00:29.8]} 75. Rh6 {[%clk 0:00:37.3]} 75... Rxh6 {[%clk 0:00:17.7]}
76. Kxh6 {[%clk 0:00:38.2]} 76... Kf7 {[%clk 0:00:19.6]} 77. Kg5 {[%clk
0:00:39.5]} 77... Kg7 {[%clk 0:00:21.2]} 78. Kf4 {[%clk 0:00:39.8]} 78... Kf6
{[%clk 0:00:23.1]} 79. Ke4 {[%clk 0:00:41]} 79... Ke7 {[%clk 0:00:23.8]} 80. Ke5
{[%clk 0:00:42.5]} 80... Kf7 {[%clk 0:00:25.3]} 81. f6 {[%clk 0:00:43.6]} 81...
Kf8 {[%clk 0:00:26.7]} 82. Ke6 {[%clk 0:00:45]} 82... Ke8 {[%clk 0:00:27.9]} 83.
Kf5 {[%clk 0:00:45.2]} 83... Kf7 {[%clk 0:00:29.8]} 84. Kg5 {[%clk 0:00:46.3]}
84... Kf8 {[%clk 0:00:31.7]} 85. Kh6 {[%clk 0:00:47.2]} 85... Kf7 {[%clk
0:00:32.7]} 86. Kg5 {[%clk 0:00:48.6]} 86... Kf8 {[%clk 0:00:30.3]} 87. Kg6
{[%clk 0:00:49.4]} 87... Kg8 {[%clk 0:00:31.2]} 88. Kf5 {[%clk 0:00:38.1]} 88...
Kf7 {[%clk 0:00:30.5]} 89. Ke5 {[%clk 0:00:38]} 89... Kf8 {[%clk 0:00:30.9]} 90.
Kf5 {[%clk 0:00:39.3]} 90... Kf7 {[%clk 0:00:31.8]} 91. Ke5 {[%clk 0:00:39.6]}
91... Kf8 {[%clk 0:00:32.5]} 92. Ke6 {[%clk 0:00:40.6]} 92... Ke8 {[%clk
0:00:33.4]} 93. Kf5 {[%clk 0:00:40.6]} 93... Kf7 {[%clk 0:00:34.5]} 94. Kg5
{[%clk 0:00:41.9]} 94... Kf8 {[%clk 0:00:33.4]} 95. Kg6 {[%clk 0:00:37.4]} 95...
Kg8 {[%clk 0:00:28.6]} 96. Kf5 {[%clk 0:00:38.8]} 96... Kf7 {[%clk 0:00:26.2]}
1/2-1/2